[Event "Late-Titled-Tuesday-Blitz-March-19-2024"]
[Site "Chess.com"]
[Date "2024.03.19"]
[Round "2"]
[White "dennisodessa"]
[Black "Fore_Man"]
[Result "1-0"]
[WhiteElo "2533"]
[BlackElo "2303"]
[TimeControl "180+1"]
[EndTime "14:13:19 PDT"]
[Termination "dennisodessa won by resignation"]

1. d4 {[%clk 0:03:00]} 1... Nf6 {[%clk 0:02:59.9]} 2. c4 {[%clk 0:03:00.6]} 2...
e6 {[%clk 0:02:59.4]} 3. Nc3 {[%clk 0:03:01.2]} 3... Bb4 {[%clk 0:02:59.1]} 4.
Qc2 {[%clk 0:03:01.9]} 4... d5 {[%clk 0:02:57.8]} 5. a3 {[%clk 0:03:02.3]} 5...
Be7 {[%clk 0:02:56.6]} 6. Bg5 {[%clk 0:03:01.8]} 6... O-O {[%clk 0:02:54.9]} 7.
Nf3 {[%clk 0:02:56.9]} 7... c5 {[%clk 0:02:55]} 8. dxc5 {[%clk 0:02:53.7]} 8...
Bxc5 {[%clk 0:02:55.1]} 9. cxd5 {[%clk 0:02:50.2]} 9... exd5 {[%clk 0:02:54.9]}
10. e3 {[%clk 0:02:50.4]} 10... Nc6 {[%clk 0:02:49.5]} 11. Rd1 {[%clk
0:02:50.4]} 11... Be6 {[%clk 0:02:43.4]} 12. Nxd5 {[%clk 0:02:48.9]} 12... Bxd5
{[%clk 0:02:41]} 13. Qxc5 {[%clk 0:02:49.1]} 13... Ne7 {[%clk 0:02:30.2]} 14.
Bxf6 {[%clk 0:02:43.5]} 14... gxf6 {[%clk 0:02:31.1]} 15. e4 {[%clk 0:02:40.7]}
15... Rc8 {[%clk 0:02:30]} 16. Qe3 {[%clk 0:02:41.1]} 16... Qa5+ {[%clk
0:02:29.2]} 17. b4 {[%clk 0:02:41.8]} 17... Qa4 {[%clk 0:02:24.1]} 18. exd5
{[%clk 0:02:41.4]} 18... Nxd5 {[%clk 0:02:24.5]} 19. Rxd5 {[%clk 0:02:16.4]}
19... Rfe8 {[%clk 0:02:22.2]} 20. Ne5 {[%clk 0:02:16.9]} 20... Rxe5 {[%clk
0:02:20.4]} 21. Rxe5 {[%clk 0:02:16.4]} 21... Rc1+ {[%clk 0:02:20.8]} 22. Qxc1
{[%clk 0:02:15.2]} 1-0

[Event "Late-Titled-Tuesday-Blitz-March-19-2024"]
[Site "Chess.com"]
[Date "2024.03.19"]
[Round "2"]
[White "rickywsb"]
[Black "Keks2017"]
[Result "0-1"]
[WhiteElo "2323"]
[BlackElo "2552"]
[TimeControl "180+1"]
[EndTime "14:13:24 PDT"]
[Termination "Keks2017 won by resignation"]

1. d4 {[%clk 0:03:00.9]} 1... d6 {[%clk 0:02:59.5]} 2. Bf4 {[%clk 0:02:53.3]}
2... Nf6 {[%clk 0:02:59.2]} 3. Nc3 {[%clk 0:02:50.3]} 3... g6 {[%clk 0:02:58.2]}
4. e4 {[%clk 0:02:49.9]} 4... c6 {[%clk 0:02:58.3]} 5. Qd2 {[%clk 0:02:47.7]}
5... Qa5 {[%clk 0:02:56.8]} 6. O-O-O {[%clk 0:02:42.3]} 6... Nbd7 {[%clk
0:02:56.7]} 7. Nf3 {[%clk 0:02:38.9]} 7... b5 {[%clk 0:02:53.9]} 8. Kb1 {[%clk
0:02:38.5]} 8... b4 {[%clk 0:02:52.2]} 9. Ne2 {[%clk 0:02:38]} 9... Nxe4 {[%clk
0:02:51.8]} 10. Qe3 {[%clk 0:02:36.6]} 10... Ndf6 {[%clk 0:02:48.2]} 11. Nc1
{[%clk 0:02:31]} 11... Bf5 {[%clk 0:02:40.6]} 12. h3 {[%clk 0:02:29.2]} 12...
Nd5 {[%clk 0:02:39]} 13. Qe1 {[%clk 0:02:21]} 13... Nxf4 {[%clk 0:02:37.6]} 14.
g4 {[%clk 0:02:21]} 14... Nc3+ {[%clk 0:02:11.7]} 15. bxc3 {[%clk 0:02:11.8]}
15... bxc3 {[%clk 0:02:11.1]} 16. gxf5 {[%clk 0:02:07.4]} 16... Qa3 {[%clk
0:02:09.5]} 0-1

[Event "Late-Titled-Tuesday-Blitz-March-19-2024"]
[Site "Chess.com"]
[Date "2024.03.19"]
[Round "2"]
[White "ThaBarWa"]
[Black "nabukatnezarr"]
[Result "0-1"]
[WhiteElo "2340"]
[BlackElo "2564"]
[TimeControl "180+1"]
[EndTime "14:13:51 PDT"]
[Termination "nabukatnezarr won by resignation"]

1. d4 {[%clk 0:02:58.2]} 1... Nf6 {[%clk 0:02:59.2]} 2. c4 {[%clk 0:02:55.9]}
2... e6 {[%clk 0:02:59.7]} 3. Nc3 {[%clk 0:02:52]} 3... c5 {[%clk 0:02:56]} 4.
d5 {[%clk 0:02:48.2]} 4... exd5 {[%clk 0:02:56.9]} 5. cxd5 {[%clk 0:02:45.2]}
5... d6 {[%clk 0:02:56]} 6. Nf3 {[%clk 0:02:41.7]} 6... g6 {[%clk 0:02:53.7]} 7.
Bg5 {[%clk 0:02:38]} 7... Bg7 {[%clk 0:02:47.1]} 8. e3 {[%clk 0:02:34.9]} 8...
a6 {[%clk 0:02:39.1]} 9. a4 {[%clk 0:02:33.7]} 9... O-O {[%clk 0:02:37.5]} 10.
Nd2 {[%clk 0:02:31.7]} 10... b6 {[%clk 0:02:23]} 11. Be2 {[%clk 0:02:31.1]}
11... Nbd7 {[%clk 0:02:16.1]} 12. O-O {[%clk 0:02:30.4]} 12... Qc7 {[%clk
0:02:12.4]} 13. Nc4 {[%clk 0:02:15.4]} 13... Bb7 {[%clk 0:02:05]} 14. Bf4 {[%clk
0:02:12.5]} 14... Ne8 {[%clk 0:02:04.6]} 15. Ne4 {[%clk 0:02:05.6]} 15... Ne5
{[%clk 0:01:53.5]} 16. Ncxd6 {[%clk 0:02:02]} 16... Nxd6 {[%clk 0:01:47.7]} 0-1

[Event "Late-Titled-Tuesday-Blitz-March-19-2024"]
[Site "Chess.com"]
[Date "2024.03.19"]
[Round "2"]
[White "mac0504"]
[Black "diamonds13"]
[Result "0-1"]
[WhiteElo "2709"]
[BlackElo "2374"]
[TimeControl "180+1"]
[EndTime "14:14:23 PDT"]
[Termination "diamonds13 won by resignation"]

1. c4 {[%clk 0:03:00.9]} 1... e5 {[%clk 0:02:57.5]} 2. Nc3 {[%clk 0:03:01.8]}
2... Nc6 {[%clk 0:02:57.3]} 3. e3 {[%clk 0:03:02.7]} 3... g6 {[%clk 0:02:55.6]}
4. h4 {[%clk 0:03:02.7]} 4... h6 {[%clk 0:02:54.3]} 5. h5 {[%clk 0:03:02.1]}
5... g5 {[%clk 0:02:54.1]} 6. a3 {[%clk 0:03:03]} 6... a5 {[%clk 0:02:52.9]} 7.
d3 {[%clk 0:03:02.8]} 7... f5 {[%clk 0:02:52.2]} 8. Rb1 {[%clk 0:02:59.6]} 8...
Nf6 {[%clk 0:02:49.5]} 9. b4 {[%clk 0:02:59.8]} 9... axb4 {[%clk 0:02:48.7]} 10.
axb4 {[%clk 0:03:00.7]} 10... Bxb4 {[%clk 0:02:48.6]} 11. Bd2 {[%clk 0:03:00.3]}
11... d6 {[%clk 0:02:46.4]} 12. g3 {[%clk 0:02:56.1]} 12... O-O {[%clk 0:02:37]}
13. Bg2 {[%clk 0:02:56.7]} 13... Ra3 {[%clk 0:02:35.1]} 14. Qc1 {[%clk
0:02:52.3]} 14... e4 {[%clk 0:02:25.3]} 15. d4 {[%clk 0:02:25.4]} 15... f4
{[%clk 0:02:16.7]} 16. Nxe4 {[%clk 0:02:05]} 16... Nxe4 {[%clk 0:02:06.5]} 17.
Bxe4 {[%clk 0:02:03]} 17... fxe3 {[%clk 0:01:59.2]} 18. Bd5+ {[%clk 0:01:31]}
18... Kh8 {[%clk 0:01:51.3]} 19. Qxa3 {[%clk 0:01:31.3]} 0-1

[Event "Late-Titled-Tuesday-Blitz-March-19-2024"]
[Site "Chess.com"]
[Date "2024.03.19"]
[Round "2"]
[White "Narek_Ghimoyan"]
[Black "maurovargas01"]
[Result "1-0"]
[WhiteElo "2450"]
[BlackElo "1818"]
[TimeControl "180+1"]
[EndTime "14:14:29 PDT"]
[Termination "Narek_Ghimoyan won by resignation"]

1. d4 {[%clk 0:03:00.9]} 1... d5 {[%clk 0:02:57.8]} 2. c4 {[%clk 0:03:01.3]}
2... c6 {[%clk 0:02:58.1]} 3. Nf3 {[%clk 0:03:01]} 3... e6 {[%clk 0:02:58.1]} 4.
e3 {[%clk 0:03:00.4]} 4... Nf6 {[%clk 0:02:58.4]} 5. Nc3 {[%clk 0:03:01]} 5...
Nbd7 {[%clk 0:02:58.8]} 6. Bd3 {[%clk 0:03:01]} 6... Bd6 {[%clk 0:02:59]} 7. e4
{[%clk 0:03:00.7]} 7... dxc4 {[%clk 0:02:58.8]} 8. Bxc4 {[%clk 0:03:00.5]} 8...
Bc7 {[%clk 0:02:52.8]} 9. e5 {[%clk 0:02:59.8]} 9... Nd5 {[%clk 0:02:48.3]} 10.
O-O {[%clk 0:02:56.9]} 10... b5 {[%clk 0:02:43.4]} 11. Bd3 {[%clk 0:02:56]}
11... b4 {[%clk 0:02:43]} 12. Ne4 {[%clk 0:02:56]} 12... O-O {[%clk 0:02:39.7]}
13. Nfg5 {[%clk 0:02:54]} 13... h6 {[%clk 0:02:36.6]} 14. Qh5 {[%clk 0:02:52]}
14... f5 {[%clk 0:02:32]} 15. Nxe6 {[%clk 0:02:45.3]} 15... Qe8 {[%clk
0:02:19.1]} 16. Qxe8 {[%clk 0:02:44.3]} 16... Rxe8 {[%clk 0:02:18.9]} 17. Nxc7
{[%clk 0:02:45.2]} 17... Nxc7 {[%clk 0:02:18.7]} 18. Nd6 {[%clk 0:02:45.3]}
18... Rf8 {[%clk 0:02:16.1]} 19. Bxf5 {[%clk 0:02:44.7]} 19... Nd5 {[%clk
0:02:06]} 20. Nxc8 {[%clk 0:02:44.6]} 20... Raxc8 {[%clk 0:02:03.2]} 21. Bxd7
{[%clk 0:02:44]} 21... Rcd8 {[%clk 0:02:04.1]} 22. Be6+ {[%clk 0:02:43.4]} 22...
Kh8 {[%clk 0:02:02.6]} 23. Bxd5 {[%clk 0:02:44.3]} 23... cxd5 {[%clk 0:02:02.5]}
24. Be3 {[%clk 0:02:45.2]} 24... a5 {[%clk 0:02:01]} 25. Rac1 {[%clk 0:02:46.1]}
25... Rd7 {[%clk 0:01:59.6]} 26. Rc5 {[%clk 0:02:46.5]} 26... Ra8 {[%clk
0:01:56.8]} 27. Rfc1 {[%clk 0:02:46.9]} 27... Kh7 {[%clk 0:01:55.3]} 28. Rc7
{[%clk 0:02:46.4]} 28... Rdd8 {[%clk 0:01:50]} 29. h4 {[%clk 0:02:46.4]} 29...
a4 {[%clk 0:01:47.8]} 30. h5 {[%clk 0:02:45.8]} 30... b3 {[%clk 0:01:42.3]} 31.
a3 {[%clk 0:02:46]} 31... Kg8 {[%clk 0:01:23.5]} 32. R1c6 {[%clk 0:02:43.3]}
32... Kh7 {[%clk 0:01:22.8]} 33. Rxh6+ {[%clk 0:02:42.4]} 33... Kg8 {[%clk
0:01:22.7]} 34. Rg6 {[%clk 0:02:43.3]} 1-0

[Event "Late-Titled-Tuesday-Blitz-March-19-2024"]
[Site "Chess.com"]
[Date "2024.03.19"]
[Round "2"]
[White "kleber2007"]
[Black "AntonovaNadezhda"]
[Result "1-0"]
[WhiteElo "2495"]
[BlackElo "2194"]
[TimeControl "180+1"]
[EndTime "14:14:45 PDT"]
[Termination "kleber2007 won by resignation"]

1. d4 {[%clk 0:03:00.9]} 1... Nf6 {[%clk 0:02:56.7]} 2. c4 {[%clk 0:03:00.6]}
2... g6 {[%clk 0:02:56.1]} 3. Nc3 {[%clk 0:03:00.1]} 3... Bg7 {[%clk 0:02:56.5]}
4. e4 {[%clk 0:02:59.7]} 4... d6 {[%clk 0:02:57]} 5. Nf3 {[%clk 0:03:00.1]} 5...
O-O {[%clk 0:02:54.8]} 6. Be2 {[%clk 0:03:00.7]} 6... e5 {[%clk 0:02:55.2]} 7.
O-O {[%clk 0:03:00.3]} 7... Nc6 {[%clk 0:02:54.8]} 8. d5 {[%clk 0:02:59.7]} 8...
Ne7 {[%clk 0:02:55.2]} 9. b4 {[%clk 0:03:00.3]} 9... a5 {[%clk 0:02:53.2]} 10.
bxa5 {[%clk 0:03:00.1]} 10... Nd7 {[%clk 0:02:44.8]} 11. a4 {[%clk 0:02:59.8]}
11... Rxa5 {[%clk 0:02:40]} 12. Ba3 {[%clk 0:02:57.1]} 12... b6 {[%clk
0:02:38.9]} 13. Bb4 {[%clk 0:02:56.7]} 13... Ra8 {[%clk 0:02:39.5]} 14. a5
{[%clk 0:02:56.9]} 14... bxa5 {[%clk 0:02:39.8]} 15. Rxa5 {[%clk 0:02:57.8]}
15... Rxa5 {[%clk 0:02:38.5]} 16. Bxa5 {[%clk 0:02:58.7]} 16... f5 {[%clk
0:02:37.7]} 17. Nb5 {[%clk 0:02:37.7]} 17... fxe4 {[%clk 0:02:36.9]} 18. Bxc7
{[%clk 0:02:32.6]} 18... exf3 {[%clk 0:02:32.5]} 19. Bxf3 {[%clk 0:02:27.5]}
19... Nc5 {[%clk 0:02:20.2]} 20. Bxd8 {[%clk 0:02:22.9]} 20... Rxd8 {[%clk
0:02:21.1]} 21. Bg4 {[%clk 0:02:18.2]} 21... Ba6 {[%clk 0:02:09.6]} 22. Nc7
{[%clk 0:02:11.5]} 22... Bxc4 {[%clk 0:02:06.2]} 23. Ne6 {[%clk 0:02:11]} 23...
Nxe6 {[%clk 0:01:57.2]} 24. Bxe6+ {[%clk 0:02:09.4]} 24... Kf8 {[%clk 0:01:57]}
25. Qf3+ {[%clk 0:02:06.1]} 25... Nf5 {[%clk 0:01:48.1]} 26. Rc1 {[%clk
0:02:02.3]} 26... Ba6 {[%clk 0:01:37.9]} 27. g4 {[%clk 0:02:00.9]} 27... Ke7
{[%clk 0:01:30.7]} 28. gxf5 {[%clk 0:02:00.1]} 28... gxf5 {[%clk 0:01:30.6]} 29.
Rc7+ {[%clk 0:01:58.3]} 1-0

[Event "Late-Titled-Tuesday-Blitz-March-19-2024"]
[Site "Chess.com"]
[Date "2024.03.19"]
[Round "2"]
[White "Englishman_18"]
[Black "andrzej"]
[Result "0-1"]
[WhiteElo "2259"]
[BlackElo "2516"]
[TimeControl "180+1"]
[EndTime "14:14:48 PDT"]
[Termination "andrzej won by resignation"]

1. Nf3 {[%clk 0:03:00.9]} 1... d5 {[%clk 0:02:59.5]} 2. d4 {[%clk 0:03:00.5]}
2... Nf6 {[%clk 0:02:59.3]} 3. c4 {[%clk 0:02:59.2]} 3... dxc4 {[%clk
0:02:58.6]} 4. Nc3 {[%clk 0:02:49.6]} 4... a6 {[%clk 0:02:58.1]} 5. a4 {[%clk
0:02:49.2]} 5... Nc6 {[%clk 0:02:56.7]} 6. e4 {[%clk 0:02:48.5]} 6... Bg4 {[%clk
0:02:56.9]} 7. Be3 {[%clk 0:02:44.8]} 7... Bxf3 {[%clk 0:02:54.9]} 8. gxf3
{[%clk 0:02:43.7]} 8... Na5 {[%clk 0:02:55.4]} 9. d5 {[%clk 0:02:39.1]} 9... c6
{[%clk 0:02:48.6]} 10. dxc6 {[%clk 0:02:33.6]} 10... Nxc6 {[%clk 0:02:37.1]} 11.
Bxc4 {[%clk 0:02:30.6]} 11... e6 {[%clk 0:02:36.3]} 12. Qxd8+ {[%clk 0:02:27]}
12... Rxd8 {[%clk 0:02:35.9]} 13. Bb6 {[%clk 0:02:26.7]} 13... Rc8 {[%clk
0:02:34.5]} 14. Be2 {[%clk 0:02:22.8]} 14... Bb4 {[%clk 0:02:34.6]} 15. Rc1
{[%clk 0:02:11.1]} 15... Nd7 {[%clk 0:02:34.7]} 16. Be3 {[%clk 0:02:08.4]} 16...
Na5 {[%clk 0:02:33.7]} 17. f4 {[%clk 0:01:49.1]} 17... Nc5 {[%clk 0:02:27.4]}
18. f3 {[%clk 0:01:47.9]} 18... O-O {[%clk 0:02:17]} 19. Bd4 {[%clk 0:01:43.2]}
19... Ncb3 {[%clk 0:02:12.1]} 20. Rd1 {[%clk 0:01:42.7]} 20... Nxd4 {[%clk
0:02:08]} 21. Rxd4 {[%clk 0:01:42.8]} 21... Rxc3 {[%clk 0:02:03]} 22. Rxb4
{[%clk 0:01:17.8]} 22... Rc1+ {[%clk 0:02:02.8]} 23. Bd1 {[%clk 0:01:17.5]}
23... Rd8 {[%clk 0:02:02.9]} 0-1

[Event "Late-Titled-Tuesday-Blitz-March-19-2024"]
[Site "Chess.com"]
[Date "2024.03.19"]
[Round "2"]
[White "cardiganbyts"]
[Black "whiteglovethief"]
[Result "1-0"]
[WhiteElo "2061"]
[BlackElo "2439"]
[TimeControl "180+1"]
[EndTime "14:14:54 PDT"]
[Termination "cardiganbyts won on time"]

1. Nf3 {[%clk 0:03:00.9]} 1... d5 {[%clk 0:02:57.4]} 2. b3 {[%clk 0:03:00.5]}
2... Nf6 {[%clk 0:02:51.6]} 3. Bb2 {[%clk 0:02:59.6]} 3... Bf5 {[%clk
0:02:51.7]} 4. e3 {[%clk 0:02:59.1]} 4... a6 {[%clk 0:02:51.1]} 5. d4 {[%clk
0:02:58.9]} 5... e6 {[%clk 0:02:50.8]} 6. Bd3 {[%clk 0:02:58.7]} 6... c5 {[%clk
0:02:49.7]} 7. Bxf5 {[%clk 0:02:54.2]} 7... exf5 {[%clk 0:02:49.8]} 8. Nbd2
{[%clk 0:02:53.4]} 8... Nc6 {[%clk 0:02:45.2]} 9. c4 {[%clk 0:02:51]} 9... cxd4
{[%clk 0:02:43.8]} 10. Nxd4 {[%clk 0:02:50.2]} 10... Bb4 {[%clk 0:02:34.2]} 11.
O-O {[%clk 0:02:40.1]} 11... Bxd2 {[%clk 0:02:31.8]} 12. Qxd2 {[%clk 0:02:39.9]}
12... dxc4 {[%clk 0:02:30.8]} 13. bxc4 {[%clk 0:02:39.8]} 13... O-O {[%clk
0:02:30.1]} 14. Rfd1 {[%clk 0:02:37.9]} 14... Ne4 {[%clk 0:02:28]} 15. Qe2
{[%clk 0:02:35.4]} 1-0

[Event "Late-Titled-Tuesday-Blitz-March-19-2024"]
[Site "Chess.com"]
[Date "2024.03.19"]
[Round "2"]
[White "Marcan2b"]
[Black "Bilan_Danila"]
[Result "1-0"]
[WhiteElo "2918"]
[BlackElo "2627"]
[TimeControl "180+1"]
[EndTime "14:14:58 PDT"]
[Termination "Marcan2b won by resignation"]

1. e4 {[%clk 0:03:00.9]} 1... c6 {[%clk 0:02:51]} 2. d4 {[%clk 0:02:59.7]} 2...
d5 {[%clk 0:02:50.7]} 3. Nc3 {[%clk 0:02:59.8]} 3... dxe4 {[%clk 0:02:47.9]} 4.
Nxe4 {[%clk 0:03:00.7]} 4... Bf5 {[%clk 0:02:47]} 5. Ng3 {[%clk 0:02:58.9]} 5...
Bg6 {[%clk 0:02:47.1]} 6. h4 {[%clk 0:02:59.3]} 6... h6 {[%clk 0:02:46.7]} 7.
Bd3 {[%clk 0:02:59.8]} 7... Bxd3 {[%clk 0:02:46.1]} 8. Qxd3 {[%clk 0:03:00.1]}
8... e6 {[%clk 0:02:45]} 9. N1e2 {[%clk 0:02:58.8]} 9... Nf6 {[%clk 0:02:41.2]}
10. Bd2 {[%clk 0:02:58.8]} 10... Bd6 {[%clk 0:02:35.3]} 11. O-O-O {[%clk
0:02:56.5]} 11... Nbd7 {[%clk 0:02:32]} 12. Kb1 {[%clk 0:02:56.8]} 12... Qc7
{[%clk 0:02:24.2]} 13. Ne4 {[%clk 0:02:57.4]} 13... Nxe4 {[%clk 0:02:18.2]} 14.
Qxe4 {[%clk 0:02:58.3]} 14... Nf6 {[%clk 0:02:16.2]} 15. Qf3 {[%clk 0:02:58.2]}
15... O-O-O {[%clk 0:02:14.8]} 16. g4 {[%clk 0:02:58.7]} 16... e5 {[%clk
0:01:52.9]} 17. g5 {[%clk 0:02:54.2]} 17... hxg5 {[%clk 0:01:50.8]} 18. hxg5
{[%clk 0:02:55.1]} 18... Nd5 {[%clk 0:01:20.8]} 19. c4 {[%clk 0:02:53.3]} 19...
Nf4 {[%clk 0:00:57]} 20. Rxh8 {[%clk 0:02:33]} 20... Rxh8 {[%clk 0:00:55.2]} 21.
dxe5 {[%clk 0:02:33.7]} 21... Bxe5 {[%clk 0:00:52.9]} 22. Bxf4 {[%clk
0:02:32.7]} 22... Re8 {[%clk 0:00:45.8]} 23. Bxe5 {[%clk 0:02:26.6]} 23... Qxe5
{[%clk 0:00:46.7]} 24. Nc3 {[%clk 0:02:26.1]} 24... f5 {[%clk 0:00:44]} 25. gxf6
{[%clk 0:02:25.8]} 25... gxf6 {[%clk 0:00:44.2]} 26. a3 {[%clk 0:02:24.5]} 26...
Qc5 {[%clk 0:00:40.7]} 27. Ne4 {[%clk 0:02:23.2]} 1-0

[Event "Late-Titled-Tuesday-Blitz-March-19-2024"]
[Site "Chess.com"]
[Date "2024.03.19"]
[Round "2"]
[White "Young_Catalan_Player09"]
[Black "schondeln"]
[Result "1-0"]
[WhiteElo "2591"]
[BlackElo "2364"]
[TimeControl "180+1"]
[EndTime "14:15:07 PDT"]
[Termination "Young_Catalan_Player09 won by checkmate"]

1. e4 {[%clk 0:03:00.9]} 1... d5 {[%clk 0:02:58.9]} 2. exd5 {[%clk 0:03:00.1]}
2... Qxd5 {[%clk 0:02:59.8]} 3. Nc3 {[%clk 0:03:00]} 3... Qa5 {[%clk 0:02:59.7]}
4. d4 {[%clk 0:03:00.3]} 4... Nf6 {[%clk 0:02:59.9]} 5. Bd2 {[%clk 0:03:00.5]}
5... Bg4 {[%clk 0:02:58.4]} 6. Be2 {[%clk 0:03:00.3]} 6... Bxe2 {[%clk 0:02:53]}
7. Qxe2 {[%clk 0:03:01.2]} 7... Nc6 {[%clk 0:02:47.4]} 8. Nf3 {[%clk 0:03:01.5]}
8... O-O-O {[%clk 0:02:46.8]} 9. Nb5 {[%clk 0:02:59.7]} 9... Qb6 {[%clk
0:02:40.4]} 10. Ng5 {[%clk 0:03:00.1]} 10... Nxd4 {[%clk 0:02:30.4]} 11. Nxd4
{[%clk 0:02:59.1]} 11... Rxd4 {[%clk 0:02:29.9]} 12. Be3 {[%clk 0:02:44.3]}
12... Qa5+ {[%clk 0:02:28.4]} 13. c3 {[%clk 0:02:39]} 13... Re4 {[%clk
0:02:22.1]} 14. Nxe4 {[%clk 0:02:38.2]} 14... Nxe4 {[%clk 0:02:22]} 15. O-O
{[%clk 0:02:29.1]} 15... e6 {[%clk 0:02:21.9]} 16. Rfd1 {[%clk 0:02:23.9]} 16...
Nf6 {[%clk 0:02:11.6]} 17. a4 {[%clk 0:02:11.1]} 17... Bd6 {[%clk 0:02:09.4]}
18. g3 {[%clk 0:01:58.6]} 18... h5 {[%clk 0:02:06.8]} 19. b4 {[%clk 0:01:56.1]}
19... Qf5 {[%clk 0:02:06.4]} 20. a5 {[%clk 0:01:44.5]} 20... h4 {[%clk
0:02:06.1]} 21. a6 {[%clk 0:01:42.9]} 21... b6 {[%clk 0:01:53.5]} 22. Qc4 {[%clk
0:01:42.2]} 22... Qf3 {[%clk 0:01:47.2]} 23. Rxd6 {[%clk 0:01:15.4]} 23... h3
{[%clk 0:01:46.6]} 24. Qc6 {[%clk 0:01:10.7]} 24... Nd5 {[%clk 0:01:37.6]} 25.
Qa8# {[%clk 0:01:07.6]} 1-0

[Event "Late-Titled-Tuesday-Blitz-March-19-2024"]
[Site "Chess.com"]
[Date "2024.03.19"]
[Round "2"]
[White "Eeleyah"]
[Black "FrankDux44"]
[Result "0-1"]
[WhiteElo "2456"]
[BlackElo "2719"]
[TimeControl "180+1"]
[EndTime "14:15:08 PDT"]
[Termination "FrankDux44 won by resignation"]

1. d4 {[%clk 0:03:00.9]} 1... d5 {[%clk 0:02:22.1]} 2. c4 {[%clk 0:02:59.9]}
2... e6 {[%clk 0:02:21.8]} 3. Nf3 {[%clk 0:03:00.1]} 3... Nf6 {[%clk 0:02:21.3]}
4. Nc3 {[%clk 0:02:59.9]} 4... Be7 {[%clk 0:02:20.5]} 5. Bf4 {[%clk 0:02:58.6]}
5... O-O {[%clk 0:02:19.7]} 6. e3 {[%clk 0:02:59]} 6... c5 {[%clk 0:02:19.1]} 7.
dxc5 {[%clk 0:02:56.9]} 7... Bxc5 {[%clk 0:02:18.8]} 8. Qc2 {[%clk 0:02:53.2]}
8... Nc6 {[%clk 0:02:14.8]} 9. a3 {[%clk 0:02:53]} 9... a6 {[%clk 0:02:11.9]}
10. Rd1 {[%clk 0:02:47.2]} 10... Qe7 {[%clk 0:02:08.3]} 11. Be2 {[%clk
0:02:34.8]} 11... dxc4 {[%clk 0:02:07.1]} 12. Bxc4 {[%clk 0:02:28.5]} 12... b5
{[%clk 0:02:07.3]} 13. Bd3 {[%clk 0:02:24.5]} 13... Bb7 {[%clk 0:02:07.4]} 14.
O-O {[%clk 0:02:23.4]} 14... h6 {[%clk 0:02:05.5]} 15. Ne4 {[%clk 0:02:07]}
15... Nxe4 {[%clk 0:02:02.9]} 16. Bxe4 {[%clk 0:02:07.9]} 16... Rfc8 {[%clk
0:02:01]} 17. b4 {[%clk 0:02:03.5]} 17... Bb6 {[%clk 0:01:58.6]} 18. Bd6 {[%clk
0:02:02.8]} 18... Qf6 {[%clk 0:01:57.3]} 19. Bc5 {[%clk 0:02:00.5]} 19... Bxc5
{[%clk 0:01:46.7]} 20. Qxc5 {[%clk 0:02:01.4]} 20... Ne7 {[%clk 0:01:32.2]} 21.
Qd4 {[%clk 0:01:51.4]} 21... Qxd4 {[%clk 0:01:25.5]} 22. Rxd4 {[%clk 0:01:52.3]}
22... Bxe4 {[%clk 0:01:25.4]} 23. Rxe4 {[%clk 0:01:52.6]} 23... Rc3 {[%clk
0:01:24.6]} 24. a4 {[%clk 0:01:51.2]} 24... bxa4 {[%clk 0:01:24.1]} 25. Ra1
{[%clk 0:01:51.3]} 25... a3 {[%clk 0:01:24.1]} 26. Ne5 {[%clk 0:01:46.6]} 26...
Rac8 {[%clk 0:01:22.7]} 0-1

[Event "Late-Titled-Tuesday-Blitz-March-19-2024"]
[Site "Chess.com"]
[Date "2024.03.19"]
[Round "2"]
[White "EcosseKillie"]
[Black "fen_fire"]
[Result "0-1"]
[WhiteElo "2303"]
[BlackElo "2533"]
[TimeControl "180+1"]
[EndTime "14:15:09 PDT"]
[Termination "fen_fire won by resignation"]

1. d4 {[%clk 0:03:00.9]} 1... c5 {[%clk 0:02:58.2]} 2. e4 {[%clk 0:02:55.9]}
2... cxd4 {[%clk 0:02:57.2]} 3. c3 {[%clk 0:02:56.6]} 3... Nf6 {[%clk
0:02:55.4]} 4. e5 {[%clk 0:02:56.4]} 4... Nd5 {[%clk 0:02:55.2]} 5. Nf3 {[%clk
0:02:57.3]} 5... Nc6 {[%clk 0:02:53.9]} 6. cxd4 {[%clk 0:02:57.4]} 6... d6
{[%clk 0:02:53.4]} 7. Bc4 {[%clk 0:02:57.4]} 7... dxe5 {[%clk 0:02:51.6]} 8.
dxe5 {[%clk 0:02:54.4]} 8... Be6 {[%clk 0:02:51.6]} 9. O-O {[%clk 0:02:49]} 9...
g6 {[%clk 0:02:50.9]} 10. Ng5 {[%clk 0:02:44.8]} 10... Bg7 {[%clk 0:02:50.3]}
11. Nxe6 {[%clk 0:02:44.8]} 11... fxe6 {[%clk 0:02:51.2]} 12. f4 {[%clk
0:02:40.1]} 12... O-O {[%clk 0:02:49.4]} 13. Nc3 {[%clk 0:02:38.9]} 13... Qb6+
{[%clk 0:02:33.1]} 14. Kh1 {[%clk 0:02:36.7]} 14... Rad8 {[%clk 0:02:30.1]} 15.
Qf3 {[%clk 0:02:33]} 15... Nd4 {[%clk 0:02:25]} 16. Nxd5 {[%clk 0:02:22.3]}
16... exd5 {[%clk 0:02:20]} 17. Bxd5+ {[%clk 0:02:22.6]} 17... e6 {[%clk
0:02:19.4]} 18. Bxe6+ {[%clk 0:02:09.4]} 18... Qxe6 {[%clk 0:02:17.8]} 19. Qxb7
{[%clk 0:02:04.8]} 19... Bxe5 {[%clk 0:01:47.7]} 20. Qe4 {[%clk 0:01:31.5]}
20... Bg7 {[%clk 0:01:43.3]} 21. Qxe6+ {[%clk 0:01:23.6]} 21... Nxe6 {[%clk
0:01:44.2]} 22. Be3 {[%clk 0:01:22.9]} 22... Bxb2 {[%clk 0:01:40.7]} 23. Rab1
{[%clk 0:01:22.6]} 23... Bd4 {[%clk 0:01:40.1]} 24. Bd2 {[%clk 0:01:21.3]} 24...
Bb6 {[%clk 0:01:38.2]} 0-1